[Event "2nd Father Cup Blitz 2023"]
[Site "Rasht"]
[Date "2023.12.07"]
[Round "3.1"]
[White "Eghdam, Pouria"]
[Black "Maghsoodloo, Parham"]
[Result "1-0"]
[ECO "A17"]
[WhiteElo "1956"]
[BlackElo "2742"]
[Annotator "TA"]
[PlyCount "56"]
[EventDate "2023.12.07"]
[EventType "swiss"]
[EventCountry "IRI"]
[SourceTitle "playchess.com"]
[Source "ChessBase"]
[SourceQuality "1"]
[TimeControl "300+2"]

{[%evp 9,56,0,0,6,13,4,10,18,16,0,0,-19,-20,-33,-12,-24,-11,-33,0,-102,-106,-187,-174,-546,-541,-525,-538,-439,-511,-571,-562,-817,-606,-1022,-728,-1762,-1731,-1635,-1592,-2348,-1755,-2016,-1054,-29982,-29982,-29988,-29989,-29989,-29990]} 1. Nf3 {[%emt 0:00:02]} d5 {[%emt 0:00:09]} 2. e3 {[%emt 0:00:02]} Nf6 {[%emt 0:00:03]} 3. c4 {[%emt 0:00:02]} e6 {[%emt 0:00:01]} 4. Nc3 {[%emt 0:00:04]} Bd6 {[%emt 0:00:03]} 5. b3 {[%emt 0:00:05]} O-O {[%emt 0:00:03]} 6. Bb2 {[%emt 0:00:02] A17: English Opening: 1...Nf6 with ...Bb4.} Nc6 {[%emt 0:00:02][%cal Bb8c6,Bc6e5,Be5c4][%mdl 32]} 7. Be2 {[%emt 0:00:23]} Re8 {[%emt 0:00:08]} 8. d4 {[%emt 0:00:05] The position is equal.} dxc4 {[%emt 0:00:04]} 9. bxc4 {[%emt 0:00:19]} e5 $1 {[%emt 0:00:02] [#]} 10. dxe5 $146 {[%emt 0:00:22]} ({Predecessor:} 10. O-O exd4 11. Nxd4 Nxd4 12. exd4 Bf5 13. Bf3 c6 14. Qb3 Ng4 15. g3 h5 16. Rae1 {1-0 So,W (2760)-Gukesh,D (2732) Norway Masters blitz 11th 2023 (4)}) 10... Nxe5 {[%emt 0:00:02]} 11. Qc2 {[%emt 0:00:05]} c6 {[%emt 0:00:06][%cal Bc7c6,Bc6d5][%mdl 32]} (11... Nfg4 {is more complex.} 12. Nb5 Bb4+ 13. Bc3 Bxc3+ 14. Qxc3 c6) 12. Rd1 {[%emt 0:00:08] [#] c5 would be deadly.} Qc7 {[%emt 0:00:14]} 13. h3 {[%emt 0:00:03]} Be6 {[%emt 0:00:23]} 14. Ng5 {[%emt 0:01:01]} (14. Nxe5 $11 {keeps the balance.} Bxe5 15. O-O) 14... Bxc4 $17 {[%emt 0:00:19]} (14... Nxc4 $2 15. Nxe6 Nxe3 16. Nxc7 $18 (16. fxe3 Bg3+ 17. Kf1 Rxe6 $16)) 15. Bxc4 {[%emt 0:00:21]} (15. O-O $17 Bxe2 16. Qxe2 (16. Nxe2 h6 $17)) 15... Nxc4 $19 {[%emt 0:00:02]} 16. Nd5 $2 {[%emt 0:00:54]} (16. O-O {is a better chance.}) 16... cxd5 {[%emt 0:00:16]} ({Weaker is} 16... Nxd5 17. Qxh7+ (17. Qxc4 $2 {perishes.} Qa5+ 18. Kf1 Be5 $19) 17... Kf8 18. Qxg7+ (18. Bxg7+ Ke7 $16) 18... Ke7 19. Qxf7+ Kd8 20. Rxd5 cxd5 21. Bf6+ Re7 22. O-O $16 (22. Bxe7+ Qxe7 23. Qxd5 Nb6 $11)) 17. Bxf6 {[%emt 0:00:03]} gxf6 {[%emt 0:00:21]} 18. Qxh7+ {[%emt 0:00:03]} Kf8 {[%emt 0:00:01]} 19. Qh6+ {[%emt 0:00:05]} Ke7 {[%emt 0:00:01]} 20. Nh7 {[%emt 0:00:19]} Bb4+ {[%emt 0:00:03]} 21. Kf1 {[%emt 0:00:02]} Qe5 {[%emt 0:00:07]} 22. f4 {[%emt 0:00:36]} Nxe3+ {[%emt 0:00:02]} 23. Kg1 {[%emt 0:00:03]} Qe6 {[%emt 0:00:02] Hoping for ...Rg8.} 24. Rd3 {[%emt 0:00:05]} Nf5 {[%emt 0:00:19]} 25. Qh5 {[%emt 0:00:02]} Qe4 {[%emt 0:00:13] ( -> ...Bc5+)} 26. Rf3 {[%emt 0:00:23]} Rg8 {[%emt 0:00:03] Black mates.} 27. Kh2 {[%emt 0:00:03] [#]} Rxg2+ $3 {[%emt 0:00:09]} 28. Kxg2 {[%emt 0:00:02] White is weak on the dark squares} Qe2+ {[%emt 0:00:03][%mdl 32768] Weighted Error Value: White=1.51/Black=0.56. Loss on time!?} 1-0

[Event "2nd Father Cup Blitz 2023"]
[Site "Rasht"]
[Date "2023.12.07"]
[Round "3.2"]
[White "Toufighi, Homayoon"]
[Black "Mobarak Nezhad, Alireza"]
[Result "1-0"]
[ECO "B08"]
[WhiteElo "2368"]
[BlackElo "1963"]
[Annotator "RC"]
[PlyCount "57"]
[EventDate "2023.12.07"]
[EventType "swiss"]
[EventCountry "IRI"]
[SourceTitle "playchess.com"]
[Source "ChessBase"]
[SourceQuality "1"]
[TimeControl "300+2"]

1. e4 {[%emt 0:00:16]} g6 {[%emt 0:00:03]} 2. d4 {[%emt 0:00:02]} Bg7 {[%emt 0:00:01]} 3. Nc3 {[%emt 0:00:00]} d6 {[%emt 0:00:00]} 4. Nf3 {[%emt 0:00:10]} c6 {[%emt 0:00:01]} 5. a4 {[%emt 0:00:02]} Nf6 {[%emt 0:00:02]} 6. Be2 {[%emt 0:00:02]} O-O {[%emt 0:00:03]} 7. O-O {[%emt 0:00:01]} Bg4 {[%emt 0:00:15]} 8. Be3 {[%emt 0:00:05]} Nbd7 {[%emt 0:00:07]} 9. h3 {[%emt 0:00:06]} Bxf3 {[%emt 0:00:03]} 10. Bxf3 {[%emt 0:00:02]} a5 {[%emt 0:00:05]} 11. g3 {[%emt 0:00:05]} Qc7 {[%emt 0:00:05]} 12. Bg2 {[%emt 0:00:02]} e5 {[%emt 0:00:02]} 13. Qd2 {[%emt 0:00:03]} Rfe8 {[%emt 0:00:26]} 14. Rad1 {[%emt 0:00:03]} Rad8 {[%emt 0:00:08]} 15. Rfe1 {[%emt 0:00:02]} exd4 {[%emt 0:00:18]} 16. Bxd4 {[%emt 0:00:02]} Nc5 {[%emt 0:00:15]} 17. Qe3 {[%emt 0:00:11]} Nfd7 {[%emt 0:00:10]} 18. Bxg7 {[%emt 0:00:03]} Kxg7 {[%emt 0:00:01]} 19. Qd4+ {[%emt 0:00:10]} Nf6 {[%emt 0:00:08]} 20. e5 {[%emt 0:00:14]} Rxe5 {[%emt 0:00:31]} 21. Rxe5 {[%emt 0:00:01]} Ne6 {[%emt 0:00:01]} 22. Rxe6 {[%emt 0:00:05]} fxe6 {[%emt 0:00:01]} 23. f4 {[%emt 0:00:13]} d5 {[%emt 0:00:08]} 24. Re1 {[%emt 0:00:04]} Kf7 {[%emt 0:00:01]} 25. h4 {[%emt 0:00:02]} c5 {[%emt 0:00:06]} 26. Qe5 {[%emt 0:00:04]} Qc6 {[%emt 0:00:00]} 27. Bh3 {[%emt 0:00:05]} Re8 {[%emt 0:00:07]} 28. Nb5 {[%emt 0:00:01]} Ne4 {[%emt 0:00:04]} 29. Rxe4 {[%emt 0:00:03]} 1-0

[Event "2nd Father Cup Blitz 2023"]
[Site "Rasht"]
[Date "2023.12.07"]
[Round "3.3"]
[White "Maghsoudloo, Amir Ali"]
[Black "Mahdavi, Reza"]
[Result "0-1"]
[ECO "A49"]
[WhiteElo "2148"]
[BlackElo "2312"]
[Annotator "RC"]
[PlyCount "71"]
[EventDate "2023.12.07"]
[EventType "swiss"]
[EventCountry "IRI"]
[SourceTitle "playchess.com"]
[Source "ChessBase"]
[SourceQuality "1"]
[TimeControl "300+2"]

1. Nf3 {[%emt 0:00:06]} Nf6 {[%emt 0:00:03]} 2. g3 {[%emt 0:00:01]} g6 {[%emt 0:00:02]} 3. b3 {[%emt 0:00:02]} Bg7 {[%emt 0:00:01]} 4. Bb2 {[%emt 0:00:01]} d6 {[%emt 0:00:00]} 5. d4 {[%emt 0:00:02]} c5 {[%emt 0:00:01]} 6. c4 {[%emt 0:00:04]} Qa5+ {[%emt 0:00:08]} 7. Qd2 {[%emt 0:00:03]} Qc7 {[%emt 0:00:09]} 8. Nc3 {[%emt 0:00:08]} Bg4 {[%emt 0:00:06]} 9. d5 {[%emt 0:00:09]} O-O {[%emt 0:00:10]} 10. Bg2 {[%emt 0:00:01]} Qc8 {[%emt 0:00:15]} 11. h3 {[%emt 0:00:04]} Bd7 {[%emt 0:00:05]} 12. e4 {[%emt 0:00:11]} e5 {[%emt 0:00:16]} 13. dxe6 {[%emt 0:00:06]} Bxe6 {[%emt 0:00:01]} 14. Nd5 {[%emt 0:00:14]} Bxd5 {[%emt 0:00:04]} 15. exd5 {[%emt 0:00:00]} Re8+ {[%emt 0:00:01]} 16. Kf1 {[%emt 0:00:01]} Nbd7 {[%emt 0:00:08]} 17. Kg1 {[%emt 0:00:15]} a6 {[%emt 0:00:00]} 18. Kh2 {[%emt 0:00:02]} b5 {[%emt 0:00:01]} 19. Rhe1 {[%emt 0:00:11]} bxc4 {[%emt 0:00:12]} 20. bxc4 {[%emt 0:00:01]} Rb8 {[%emt 0:00:19]} 21. Rab1 {[%emt 0:00:10]} Rxe1 {[%emt 0:00:14]} 22. Rxe1 {[%emt 0:00:14]} Rxb2 {[%emt 0:00:03]} 23. Qf4 {[%emt 0:00:11]} Qc7 {[%emt 0:00:16]} 24. g4 {[%emt 0:00:20]} Rxf2 {[%emt 0:00:30]} 25. Re7 {[%emt 0:00:06]} Qd8 {[%emt 0:00:13]} 26. Re1 {[%emt 0:00:35]} Ne5 {[%emt 0:00:06]} 27. Kg3 {[%emt 0:00:25]} Nd3 {[%emt 0:00:07]} 28. Qe3 {[%emt 0:00:04]} Rxf3+ {[%emt 0:00:06]} 29. Bxf3 {[%emt 0:00:05]} Nxe1 {[%emt 0:00:01]} 30. Qxe1 {[%emt 0:00:01]} Nd7 {[%emt 0:00:00]} 31. Kg2 {[%emt 0:00:06]} Bd4 {[%emt 0:00:01]} 32. Qb1 {[%emt 0:00:11]} Ne5 {[%emt 0:00:01]} 33. Be4 {[%emt 0:00:02]} Qf6 {[%emt 0:00:01]} 34. Qc2 {[%emt 0:00:05]} Qf4 {[%emt 0:00:03]} 35. Qe2 {[%emt 0:00:01]} Nxc4 {[%emt 0:00:02]} 36. Qd1 {[%emt 0:00:00]} 0-1

[Event "2nd Father Cup Blitz 2023"]
[Site "Rasht"]
[Date "2023.12.07"]
[Round "3.4"]
[White "Mousavi, Seyed Khalil"]
[Black "Ezzati, Fereidoon"]
[Result "1-0"]
[ECO "E70"]
[WhiteElo "2501"]
[BlackElo "1954"]
[Annotator "RC"]
[PlyCount "83"]
[EventDate "2023.12.07"]
[EventType "swiss"]
[EventCountry "IRI"]
[SourceTitle "playchess.com"]
[Source "ChessBase"]
[SourceQuality "1"]
[TimeControl "300+2"]

1. d4 {[%emt 0:00:02]} Nf6 {[%emt 0:00:01]} 2. c4 {[%emt 0:00:02]} g6 {[%emt 0:00:03]} 3. Nc3 {[%emt 0:00:01]} Bg7 {[%emt 0:00:01]} 4. e4 {[%emt 0:00:02]} d6 {[%emt 0:00:01]} 5. Nge2 {[%emt 0:00:06]} O-O {[%emt 0:00:03]} 6. Ng3 {[%emt 0:00:01]} c6 {[%emt 0:00:05]} 7. Be2 {[%emt 0:00:03]} e5 {[%emt 0:00:07]} 8. d5 {[%emt 0:00:02]} cxd5 {[%emt 0:00:04]} 9. cxd5 {[%emt 0:00:03]} Nbd7 {[%emt 0:00:07]} 10. Be3 {[%emt 0:00:05]} a6 {[%emt 0:00:11]} 11. O-O {[%emt 0:00:24]} b5 {[%emt 0:00:06]} 12. b4 {[%emt 0:00:04]} Nb6 {[%emt 0:00:04]} 13. a4 {[%emt 0:00:04]} bxa4 {[%emt 0:00:11]} 14. Nxa4 {[%emt 0:00:19]} Nxa4 {[%emt 0:00:30]} 15. Rxa4 {[%emt 0:00:01]} Bb7 {[%emt 0:00:14]} 16. Bd3 {[%emt 0:00:16]} h5 {[%emt 0:00:02]} 17. h3 {[%emt 0:00:04]} Kh7 {[%emt 0:00:09]} 18. Qa1 {[%emt 0:00:07]} h4 {[%emt 0:00:08]} 19. Ne2 {[%emt 0:00:01]} Re8 {[%emt 0:00:19]} 20. Bg5 {[%emt 0:00:10]} Qb6 {[%emt 0:00:13]} 21. Qa2 {[%emt 0:00:24]} Nh5 {[%emt 0:00:13]} 22. Be3 {[%emt 0:00:15]} Qd8 {[%emt 0:00:14]} 23. Bxa6 {[%emt 0:00:27]} Bxa6 {[%emt 0:00:11]} 24. Rxa6 {[%emt 0:00:01]} Rb8 {[%emt 0:00:01]} 25. Rb1 {[%emt 0:00:10]} Bh6 {[%emt 0:00:12]} 26. Bxh6 {[%emt 0:00:10]} Kxh6 {[%emt 0:00:02]} 27. Qd2+ {[%emt 0:00:03]} Kg7 {[%emt 0:00:01]} 28. b5 {[%emt 0:00:06]} Nf6 {[%emt 0:00:11]} 29. Qe3 {[%emt 0:00:16]} Qc7 {[%emt 0:00:09]} 30. Rc6 {[%emt 0:00:07]} Qa5 {[%emt 0:00:01]} 31. b6 {[%emt 0:00:08]} Qa4 {[%emt 0:00:03]} 32. Nc3 {[%emt 0:00:11]} Qa3 {[%emt 0:00:15]} 33. Qe1 {[%emt 0:00:33]} Re7 {[%emt 0:00:05]} 34. Nb5 {[%emt 0:00:05]} Qd3 {[%emt 0:00:08]} 35. Nxd6 {[%emt 0:00:05]} Rd7 {[%emt 0:00:04]} 36. b7 {[%emt 0:00:15]} Rxd6 {[%emt 0:00:18]} 37. Rxd6 {[%emt 0:00:02]} Nxe4 {[%emt 0:00:01]} 38. Rd7 {[%emt 0:00:11]} Kg8 {[%emt 0:00:18]} 39. Rc1 {[%emt 0:00:09]} Nf6 {[%emt 0:00:29]} 40. Rc8+ {[%emt 0:00:04]} Kg7 {[%emt 0:00:01]} 41. Rxb8 {[%emt 0:00:06]} Nxd7 {[%emt 0:00:01]} 42. Rd8 {[%emt 0:00:02]} 1-0

[Event "2nd Father Cup Blitz 2023"]
[Site "Rasht"]
[Date "2023.12.07"]
[Round "4.1"]
[White "Maghsoodloo, Parham"]
[Black "Khaledi, Omid"]
[Result "1-0"]
[ECO "E12"]
[WhiteElo "2742"]
[BlackElo "2176"]
[Annotator "TA"]
[PlyCount "55"]
[EventDate "2023.12.07"]
[EventType "swiss"]
[EventCountry "IRI"]
[SourceTitle "playchess.com"]
[Source "ChessBase"]
[SourceQuality "1"]
[TimeControl "300+2"]

{[%evp 10,55,0,0,0,0,4,-46,22,22,25,9,26,24,28,30,30,1,60,50,51,54,53,49,78,42,77,84,80,83,104,83,148,114,344,212,640,636,906,901,1440,826,805,796,29997,29998,29998,29999]} 1. d4 {[%emt 0:00:01]} Nf6 {[%emt 0:00:03]} 2. c4 {[%emt 0:00:03]} e6 {[%emt 0:00:03]} 3. Nf3 {[%emt 0:00:02]} b6 {[%emt 0:00:01]} 4. a3 {[%emt 0:00:02]} Bb7 {[%emt 0:00:06]} 5. Bf4 {[%emt 0:00:04]} Be7 {[%emt 0:00:24]} 6. Nc3 {[%emt 0:00:05]} O-O {[%emt 0:00:02] E12: Queen's Indian: Unusual White 4th moves, 4 a3, 4 Nc3 Bb7 5 a3 and 4 Nc3 Bb7 .} 7. Qc2 {[%emt 0:00:02]} d5 {[%emt 0:01:45]} 8. Rd1 {[%emt 0:00:02]} (8. e3 $11) 8... Nbd7 {[%emt 0:00:21]} (8... dxc4 $15 9. e3 Ba6) 9. cxd5 $11 {[%emt 0:00:04]} exd5 {[%emt 0:00:04]} 10. e3 {[%emt 0:00:04]} c6 {[%emt 0:00:42]} 11. Bd3 {[%emt 0:00:04]} Re8 {[%emt 0:00:04]} 12. O-O {[%emt 0:00:03]} Nf8 {[%emt 0:00:03]} 13. Ne5 {[%emt 0:00:03]} Ng6 {[%emt 0:00:28] [#]} (13... Nh5 $11) 14. Bg5 $146 {[%emt 0:00:07]} ({Predecessor:} 14. Bg3 Bd6 15. f4 Rc8 16. h3 Qe7 17. Bf5 Rc7 18. Bf2 Ba6 19. Rfe1 c5 20. Qa4 {1-0 Omar,N (2322)-Petrov,V (2002) Golden Sands Europe op 1st 2012 (5)}) 14... Nd7 {[%emt 0:00:29]} 15. Bxe7 {[%emt 0:00:04]} Qxe7 {[%emt 0:00:24]} 16. f4 {[%emt 0:00:03]} Ndxe5 {[%emt 0:00:24]} 17. dxe5 {[%emt 0:00:14]} Red8 {[%emt 0:00:07]} 18. Ne2 {[%emt 0:00:10][%cal Bc3e2,Be2g3,Bg3f5,Bf5e7][%mdl 32]} c5 {[%emt 0:00:02]} 19. Ng3 {[%emt 0:00:02]} Rac8 {[%emt 0:00:03]} 20. Nf5 {[%emt 0:00:03]} Qc7 {[%emt 0:00:03]} ({Black should try} 20... Qf8) 21. Qf2 {[%emt 0:00:06] White is much more active.} Nf8 $2 {[%emt 0:00:02] Loses the game.} (21... Rf8 $16) 22. Qh4 {[%emt 0:00:09] [#] Rf3 is the strong threat.} Rb8 $2 {[%emt 0:00:02]} (22... Ng6 23. Qg3 Ra8) 23. Rf3 $18 {[%emt 0:00:07]} Bc8 {[%emt 0:00:02]} 24. Ne7+ {[%emt 0:00:33]} Kh8 {[%emt 0:00:00] [#]} 25. Bxh7 $1 {[%emt 0:00:02][%mdl 512]} Nxh7 {[%emt 0:00:02]} 26. f5 {[%emt 0:00:01]} g6 {[%emt 0:00:04]} 27. fxg6 {[%emt 0:00:03]} fxg6 {[%emt 0:00:02]} 28. Rf7 {[%emt 0:00:02] An entertaining game by Maghsoodloo.   Weighted Error Value: White=0.18 (very precise) /Black=0.97} 1-0

[Event "2nd Father Cup Blitz 2023"]
[Site "Rasht"]
[Date "2023.12.07"]
[Round "4.2"]
[White "Omidi, Arya"]
[Black "Toufighi, Homayoon"]
[Result "0-1"]
[ECO "C41"]
[WhiteElo "2301"]
[BlackElo "2368"]
[Annotator "RC"]
[PlyCount "102"]
[EventDate "2023.12.07"]
[EventType "swiss"]
[EventCountry "IRI"]
[SourceTitle "playchess.com"]
[Source "ChessBase"]
[SourceQuality "1"]
[TimeControl "300+2"]

1. e4 {[%emt 0:00:01]} d6 {[%emt 0:00:08]} 2. d4 {[%emt 0:00:01]} Nf6 {[%emt 0:00:02]} 3. Nc3 {[%emt 0:00:02]} e5 {[%emt 0:00:01]} 4. Nf3 {[%emt 0:00:03]} Nbd7 {[%emt 0:00:03]} 5. Bc4 {[%emt 0:00:07]} Be7 {[%emt 0:00:02]} 6. O-O {[%emt 0:00:02]} O-O {[%emt 0:00:01]} 7. Qe2 {[%emt 0:00:03]} c6 {[%emt 0:00:03]} 8. a4 {[%emt 0:00:01]} Qc7 {[%emt 0:00:03]} 9. h3 {[%emt 0:00:04]} Rb8 {[%emt 0:00:04]} 10. Re1 {[%emt 0:00:27]} b6 {[%emt 0:00:03]} 11. Bg5 {[%emt 0:00:11]} Re8 {[%emt 0:00:11]} 12. Rad1 {[%emt 0:00:04]} Nf8 {[%emt 0:00:09]} 13. d5 {[%emt 0:00:30]} c5 {[%emt 0:00:14]} 14. Nb5 {[%emt 0:00:15]} Qd7 {[%emt 0:00:08]} 15. Na3 {[%emt 0:00:01]} Qb7 {[%emt 0:00:10]} 16. Bb5 {[%emt 0:00:06]} Bd7 {[%emt 0:00:06]} 17. Nc4 {[%emt 0:00:02]} Qc7 {[%emt 0:00:37]} 18. b3 {[%emt 0:00:01]} Bxb5 {[%emt 0:00:29]} 19. axb5 {[%emt 0:00:01]} Qd7 {[%emt 0:00:02]} 20. Ra1 {[%emt 0:00:19]} Ng6 {[%emt 0:00:06]} 21. Ncd2 {[%emt 0:00:16]} h6 {[%emt 0:00:26]} 22. Bxf6 {[%emt 0:00:04]} Bxf6 {[%emt 0:00:04]} 23. Ra4 {[%emt 0:03:07]} Rb7 {[%emt 0:00:09]} 24. Rea1 {[%emt 0:00:00]} Nf4 {[%emt 0:00:03]} 25. Qf1 {[%emt 0:00:00]} g6 {[%emt 0:00:03]} 26. Kh2 {[%emt 0:00:00]} Bg7 {[%emt 0:00:01]} 27. R1a2 {[%emt 0:00:00]} Re7 {[%emt 0:00:10]} 28. g3 {[%emt 0:00:00]} Nh5 {[%emt 0:00:01]} 29. Nh4 {[%emt 0:00:00]} Bf6 {[%emt 0:00:03]} 30. Ng2 {[%emt 0:00:00]} Bg5 {[%emt 0:00:08]} 31. Nf3 {[%emt 0:00:00]} f5 {[%emt 0:00:03]} 32. Nxg5 {[%emt 0:00:00]} hxg5 {[%emt 0:00:01]} 33. Qe2 {[%emt 0:00:00]} Rh7 {[%emt 0:00:11]} 34. Ne3 {[%emt 0:00:00]} Nf6 {[%emt 0:00:05]} 35. exf5 {[%emt 0:00:00]} gxf5 {[%emt 0:00:00]} 36. g4 {[%emt 0:00:00]} f4 {[%emt 0:00:32]} 37. Nf5 {[%emt 0:00:00]} Kf8 {[%emt 0:00:17]} 38. f3 {[%emt 0:00:00]} Ke8 {[%emt 0:00:03]} 39. Qd3 {[%emt 0:00:00]} Kd8 {[%emt 0:00:05]} 40. b4 {[%emt 0:00:00]} e4 {[%emt 0:00:19]} 41. fxe4 {[%emt 0:00:18]} Nxg4+ {[%emt 0:00:02]} 42. Kg1 {[%emt 0:00:00]} Ne5 {[%emt 0:00:01]} 43. Qf1 {[%emt 0:00:09]} g4 {[%emt 0:00:11]} 44. bxc5 {[%emt 0:00:04]} bxc5 {[%emt 0:00:10]} 45. hxg4 {[%emt 0:00:04]} f3 {[%emt 0:00:04]} 46. c4 {[%emt 0:00:02]} Kc8 {[%emt 0:00:15]} 47. Ra6 {[%emt 0:00:01]} Kb8 {[%emt 0:00:07]} 48. Rxd6 {[%emt 0:00:04]} Qc8 {[%emt 0:00:02]} 49. Re6 {[%emt 0:00:03]} Qh8 {[%emt 0:00:00]} 50. Rxe5 {[%emt 0:00:05]} Rh1+ {[%emt 0:00:01]} 51. Kf2 {[%emt 0:00:01]} Rxf1+ {[%emt 0:00:02]} 0-1

[Event "2nd Father Cup Blitz 2023"]
[Site "Rasht"]
[Date "2023.12.07"]
[Round "4.3"]
[White "Mahdavi, Reza"]
[Black "Moradi, Behrooz"]
[Result "1-0"]
[ECO "B40"]
[WhiteElo "2312"]
[BlackElo "2217"]
[Annotator "RC"]
[PlyCount "53"]
[EventDate "2023.12.07"]
[EventType "swiss"]
[EventCountry "IRI"]
[SourceTitle "playchess.com"]
[Source "ChessBase"]
[SourceQuality "1"]
[TimeControl "300+2"]

1. e4 {[%emt 0:00:07]} c5 {[%emt 0:00:02]} 2. Nf3 {[%emt 0:00:01]} e6 {[%emt 0:00:02]} 3. c3 {[%emt 0:00:01]} d5 {[%emt 0:00:03]} 4. e5 {[%emt 0:00:01]} d4 {[%emt 0:00:02]} 5. d3 {[%emt 0:00:01]} dxc3 {[%emt 0:00:02]} 6. Nxc3 {[%emt 0:00:04]} Nc6 {[%emt 0:00:03]} 7. Ne4 {[%emt 0:00:10]} f5 {[%emt 0:00:23]} 8. Bg5 {[%emt 0:00:07]} Qa5+ {[%emt 0:00:09]} 9. Nc3 {[%emt 0:00:16]} Be7 {[%emt 0:00:10]} 10. Bd2 {[%emt 0:00:01]} Qd8 {[%emt 0:00:12]} 11. Be2 {[%emt 0:00:05]} Nh6 {[%emt 0:00:10]} 12. Bxh6 {[%emt 0:00:18]} gxh6 {[%emt 0:00:01]} 13. Qc1 {[%emt 0:00:08]} Bg5 {[%emt 0:00:13]} 14. Qc2 {[%emt 0:00:00]} Nd4 {[%emt 0:00:27]} 15. Nxd4 {[%emt 0:00:12]} Qxd4 {[%emt 0:00:01]} 16. g3 {[%emt 0:00:13]} Bd7 {[%emt 0:00:10]} 17. f4 {[%emt 0:00:02]} Be7 {[%emt 0:00:05]} 18. Bh5+ {[%emt 0:00:01]} Kf8 {[%emt 0:00:05]} 19. O-O-O {[%emt 0:00:01]} Bc6 {[%emt 0:00:11]} 20. Rhf1 {[%emt 0:00:05]} Rd8 {[%emt 0:00:07]} 21. Kb1 {[%emt 0:00:08]} b5 {[%emt 0:00:08]} 22. g4 {[%emt 0:00:04]} b4 {[%emt 0:00:09]} 23. Ne2 {[%emt 0:00:01]} Qe3 {[%emt 0:00:13]} 24. gxf5 {[%emt 0:00:01]} exf5 {[%emt 0:00:06]} 25. Ng3 {[%emt 0:00:02]} Bd7 {[%emt 0:00:17]} 26. Qc4 {[%emt 0:00:02]} Qd4 {[%emt 0:00:05]} 27. Qf7# {[%emt 0:00:02]} 1-0

[Event "2nd Father Cup Blitz 2023"]
[Site "Rasht"]
[Date "2023.12.07"]
[Round "4.4"]
[White "Sadeh, Shahin"]
[Black "Mousavi, Seyed Khalil"]
[Result "1-0"]
[ECO "A04"]
[WhiteElo "2202"]
[BlackElo "2501"]
[Annotator "RC"]
[PlyCount "51"]
[EventDate "2023.12.07"]
[EventType "swiss"]
[EventCountry "IRI"]
[SourceTitle "playchess.com"]
[Source "ChessBase"]
[SourceQuality "1"]
[TimeControl "300+2"]

1. e4 {[%emt 0:00:01]} c5 {[%emt 0:00:03]} 2. Nf3 {[%emt 0:00:01]} e6 {[%emt 0:00:02]} 3. d3 {[%emt 0:00:02]} Nc6 {[%emt 0:00:05]} 4. g3 {[%emt 0:00:01]} g6 {[%emt 0:00:01]} 5. Bg2 {[%emt 0:00:01]} Bg7 {[%emt 0:00:01]} 6. O-O {[%emt 0:00:02]} Nge7 {[%emt 0:00:02]} 7. Re1 {[%emt 0:00:01]} d6 {[%emt 0:00:01]} 8. c3 {[%emt 0:00:05]} e5 {[%emt 0:00:03]} 9. Na3 {[%emt 0:00:04]} O-O {[%emt 0:00:03]} 10. Nc4 {[%emt 0:00:11]} h6 {[%emt 0:00:04]} 11. a4 {[%emt 0:00:01]} b6 {[%emt 0:00:09]} 12. Be3 {[%emt 0:00:17]} Be6 {[%emt 0:00:06]} 13. b3 {[%emt 0:00:18]} Kh7 {[%emt 0:00:04]} 14. d4 {[%emt 0:00:08]} exd4 {[%emt 0:00:04]} 15. cxd4 {[%emt 0:00:02]} Bg4 {[%emt 0:00:02]} 16. d5 {[%emt 0:00:47]} Bxa1 {[%emt 0:00:21]} 17. Qxa1 {[%emt 0:00:02]} Nb4 {[%emt 0:00:04]} 18. Qf6 {[%emt 0:01:08]} Nc8 {[%emt 0:00:43]} 19. Qf4 {[%emt 0:00:05]} Bxf3 {[%emt 0:01:06]} 20. Qxh6+ {[%emt 0:00:02]} Kg8 {[%emt 0:00:00]} 21. Bg5 {[%emt 0:00:26]} f6 {[%emt 0:00:07]} 22. Qxg6+ {[%emt 0:00:03]} Kh8 {[%emt 0:00:00]} 23. Bh3 {[%emt 0:01:17]} Qe7 {[%emt 0:01:25]} 24. Qh6+ {[%emt 0:00:07]} Kg8 {[%emt 0:00:01]} 25. Be6+ {[%emt 0:00:04]} Rf7 {[%emt 0:00:01]} 26. Bxf6 {[%emt 0:00:03]} 1-0